fUSD/lending_fUSD_20250610
["ID","MTS","AMOUNT","RATE_DAILY","PERIOD"]
[365196681,1749528642649,-490.0,0.00016931,2]
[365196682,1749528642659,-448.39038655,0.00016932,2]
[365196685,1749528642669,-150.0,0.00016932,2]
[365196687,1749528642678,-500.0,0.00016932,2]
[365196689,1749528642693,-223.9829634,0.00016932,2]
[365196691,1749528642702,-500.0,0.00016932,2]
[365196693,1749528642712,-307.43589077,0.00016932,2]
[365196695,1749528642721,-500.0,0.00016932,2]
[365196697,1749528642733,-833.29909032,0.00016933,2]
[365196699,1749528642742,-7919.67274582,0.00016936,2]
[365196701,1749528642752,-275.02024108,0.0001694,2]
[365196703,1749528642762,-7064.0,0.00016953,2]
[365196705,1749528642776,-155.0,0.00016953,2]
[365196707,1749528642786,-4085.0,0.00016953,2]
[365196709,1749528642795,-4058.14303282,0.00016955,2]
[365196711,1749528642805,-402.97238446,0.00016957,2]
[365196713,1749528642816,-217.64144777,0.00016959,2]
[365196716,1749528642827,-500.0,0.00016959,2]
[365196718,1749528642837,-555.63395608,0.00016959,2]
[365196720,1749528642848,-542.06597887,0.00016959,2]
[365196722,1749528642858,-402.97238446,0.00016966,2]
[365196724,1749528642868,-883.0,0.00016966,2]
[365196726,1749528642878,-853.0,0.00016966,2]
[365196728,1749528642888,-2347.87260389,0.0001697,2]
[365196730,1749528642898,-11174.48661223,0.00016978,2]
[365196732,1749528642909,-11174.48661223,0.00016984,2]
[365196734,1749528642920,-25172.47791708,0.00016985,2]
[365196736,1749528642930,-3396.77248603,0.00016989,2]
[365196738,1749528642940,-1000.0,0.00017021,2]
[365196740,1749528642950,-1000.0,0.00017021,2]
[365196743,1749528642961,-2434.74389024,0.00017025,2]
[365196745,1749528642972,-6787.14749726,0.00017026,2]
[365196747,1749528642982,-1078.0,0.00017053,2]
[365196749,1749528642993,-4162.10406989,0.00017069,2]
[365196751,1749528643003,-2524.82941417,0.0001708,2]
[365196753,1749528643014,-500.0,0.00017094,2]
[365196755,1749528643024,-494.76,0.00017094,2]
[365196757,1749528643033,-490.0,0.00017095,2]
[365196759,1749528643043,-490.0,0.00017095,2]
[365196761,1749528643053,-523.16211381,0.00017095,2]
[365196763,1749528643065,-490.0,0.00017095,2]
[365196765,1749528643075,-490.0,0.00017095,2]
[365196768,1749528643085,-490.0,0.00017095,2]
[365196770,1749528643096,-533.87672707,0.00017095,2]
[365196772,1749528643106,-490.0,0.00017095,2]
[365196774,1749528643116,-490.33,0.00017095,2]
[365196776,1749528643125,-490.0,0.00017095,2]
[365196778,1749528643135,-490.0,0.00017095,2]
[365196780,1749528643145,-490.0,0.00017095,2]
[365196783,1749528643155,-490.0,0.00017095,2]
[365196786,1749528643165,-490.0,0.00017095,2]
[365196789,1749528643175,-490.0,0.00017095,2]
[365196792,1749528643184,-504.07025092,0.00017095,2]
[365196795,1749528643194,-490.0,0.00017095,2]
[365196797,1749528643203,-490.0,0.00017095,2]
[365196799,1749528643213,-490.0,0.00017095,2]
[365196801,1749528643224,-656.33,0.00017095,2]
[365196804,1749528643237,-814.69,0.00017095,2]
[365196806,1749528643248,-490.0,0.00017095,2]
[365196808,1749528643257,-713.72,0.00017095,2]
[365196810,1749528643267,-896.72,0.00017095,2]
[365196812,1749528643278,-490.0,0.00017095,2]
[365196814,1749528643287,-490.0,0.00017095,2]
[365196816,1749528643297,-510.54,0.00017095,2]
[365196818,1749528643306,-490.0,0.00017095,2]
[365196820,1749528643316,-490.0,0.00017095,2]
[365196822,1749528643326,-490.0,0.00017095,2]
[365196824,1749528643336,-490.0,0.00017095,2]
[365196826,1749528643347,-490.0,0.00017095,2]
[365196827,1749528643357,-490.0,0.00017095,2]
[365196829,1749528643368,-490.0,0.00017095,2]
[365196831,1749528643380,-490.0,0.00017095,2]
[365196834,1749528643390,-490.0,0.00017095,2]
[365196836,1749528643400,-490.0,0.00017095,2]
[365196838,1749528643410,-490.0,0.00017095,2]
[365196840,1749528643420,-586.76,0.00017095,2]
[365196842,1749528643429,-490.0,0.00017095,2]
[365196844,1749528643439,-1928.5,0.00017095,2]
[365196846,1749528643449,-490.0,0.00017095,2]
[365196848,1749528643459,-490.0,0.00017095,2]
[365196850,1749528643468,-296.33861225,0.00017095,2]
[365196852,1749528643477,-490.0,0.00017095,2]
[365196854,1749528643487,-490.0,0.00017095,2]
[365196856,1749528643497,-490.0,0.00017095,2]
[365196858,1749528643507,-500.42,0.00017095,2]
[365196860,1749528643517,-602.11,0.00017095,2]
[365196862,1749528643526,-490.0,0.00017095,2]
[365196864,1749528643536,-490.0,0.00017095,2]
[365196866,1749528643545,-490.0,0.00017095,2]
[365196868,1749528643555,-490.0,0.00017095,2]
[365196870,1749528643565,-534.62,0.00017095,2]
[365196872,1749528643575,-490.0,0.00017095,2]
[365196874,1749528643585,-490.0,0.00017095,2]
[365196876,1749528643595,-159.53,0.00017095,2]
[365196878,1749528643604,-490.0,0.00017095,2]
[365196880,1749528643616,-490.0,0.00017095,2]
[365196882,1749528643626,-191.36095136,0.00017095,2]
[365196884,1749528643636,-490.0,0.00017095,2]
[365196886,1749528643645,-490.0,0.00017095,2]
[365196888,1749528643655,-490.0,0.00017095,2]
[365196890,1749528643665,-490.0,0.00017095,2]
[365196892,1749528643675,-490.0,0.00017095,2]
[365196894,1749528643684,-490.0,0.00017095,2]
[365196896,1749528643696,-20654.85,0.00017095,2]
[365196898,1749528643706,-490.0,0.00017095,2]
[365196923,1749528643941,-490.0,0.00017095,2]
[365196925,1749528643956,-490.0,0.00017095,2]
[365196927,1749528643966,-490.0,0.00017095,2]
[365196929,1749528643977,-916.68,0.00017095,2]
[365196931,1749528643987,-490.0,0.00017095,2]
[365196932,1749528643996,-490.0,0.00017095,2]
[365196934,1749528644006,-289.28,0.00017095,2]
[365196936,1749528644015,-490.0,0.00017095,2]
[365196938,1749528644025,-1238.04,0.00017095,2]
[365196940,1749528644035,-378.91390264,0.00017095,2]
[365196942,1749528644044,-490.0,0.00017095,2]
[365196944,1749528644054,-1206.41,0.00017095,2]
[365196946,1749528644063,-490.0,0.00017095,2]
[365196948,1749528644072,-504.91,0.00017095,2]
[365196950,1749528644082,-490.0,0.00017095,2]
[365196952,1749528644091,-490.0,0.00017095,2]
[365196954,1749528644101,-490.0,0.00017095,2]
[365196955,1749528644111,-490.0,0.00017095,2]
[365196957,1749528644121,-490.0,0.00017095,2]
[365196959,1749528644131,-169.47798688,0.00017095,2]
[365196961,1749528644141,-490.0,0.00017095,2]
[365196963,1749528644151,-490.0,0.00017095,2]
[365196965,1749528644160,-627.69,0.00017095,2]
[365196967,1749528644170,-490.0,0.00017095,2]
[365196969,1749528644180,-490.0,0.00017095,2]
[365196971,1749528644190,-200.0,0.000171,2]
[365196973,1749528644200,-150.0,0.0001711,2]
[365196975,1749528644209,-561.78453823,0.00017118,2]
[365196977,1749528644219,-561.78453823,0.00017118,2]
[365196979,1749528644228,-859.35417344,0.00017135,2]
[365196981,1749528644238,-150.0,0.00017142,2]
[365196983,1749528644248,-150.0,0.00017154,2]
[365196985,1749528644258,-150.0,0.00017158,2]
[365196987,1749528644269,-150.0,0.00017163,2]
[365196989,1749528644278,-150.0,0.00017174,2]
[365196991,1749528644288,-150.0,0.00017183,2]
[365196993,1749528644298,-1000.0,0.00017188,2]
[365196995,1749528644307,-150.0,0.00017189,2]
[365196997,1749528644317,-2637.0,0.00017189,2]
[365196998,1749528644327,-945.0,0.00017189,2]
[365197000,1749528644336,-150.0,0.00017194,2]
[365197002,1749528644345,-2100.23014759,0.00017196,2]
[365197004,1749528644355,-150.0,0.00017197,2]
[365197006,1749528644364,-150.0,0.00017199,2]
[365197008,1749528644374,-1000.0,0.000172,2]
[365197010,1749528644384,-150.0,0.00017209,2]
[365197012,1749528644393,-150.0,0.00017211,2]
[365197014,1749528644403,-150.0,0.00017213,2]
[365197016,1749528644413,-150.0,0.00017219,2]
[365197018,1749528644424,-150.0,0.00017222,2]
[365197020,1749528644433,-150.0,0.00017226,2]
[365197022,1749528644443,-150.0,0.0001723,2]
[365197024,1749528644453,-150.0,0.00017238,2]
[365197026,1749528644463,-150.0,0.00017252,2]
[365197028,1749528644473,-150.0,0.00017253,2]
[365197030,1749528644483,-721.19,0.00017259,2]
[365197032,1749528644493,-500.0,0.00017259,2]
[365197034,1749528644503,-490.0,0.0001726,2]
[365197036,1749528644513,-490.0,0.0001726,2]
[365197038,1749528644522,-490.0,0.0001726,2]
[365197040,1749528644531,-469.39444996,0.0001726,2]
[365197042,1749528644541,-490.0,0.0001726,2]
[365197044,1749528644550,-490.0,0.0001726,2]
[365197046,1749528644559,-490.33,0.0001726,2]
[365197048,1749528644569,-490.0,0.0001726,2]
[365197050,1749528644578,-490.0,0.0001726,2]
[365197051,1749528644587,-490.0,0.0001726,2]
[365197053,1749528644597,-490.0,0.0001726,2]
[365197055,1749528644606,-490.0,0.0001726,2]
[365197057,1749528644616,-490.0,0.0001726,2]
[365197059,1749528644626,-490.0,0.0001726,2]
[365197061,1749528644635,-490.0,0.0001726,2]
[365197063,1749528644644,-490.0,0.0001726,2]
[365197065,1749528644654,-656.33,0.0001726,2]
[365197067,1749528644663,-814.69,0.0001726,2]
[365197069,1749528644672,-490.0,0.0001726,2]
[365197071,1749528644681,-713.72,0.0001726,2]
[365197073,1749528644698,-896.72,0.0001726,2]
[365197075,1749528644708,-490.0,0.0001726,2]
[365197077,1749528644718,-490.0,0.0001726,2]
[365197078,1749528644730,-510.54,0.0001726,2]
[365197080,1749528644739,-490.0,0.0001726,2]
[365197082,1749528644749,-490.0,0.0001726,2]
[365197084,1749528644759,-490.0,0.0001726,2]
[365197086,1749528644769,-490.0,0.0001726,2]
[365197088,1749528644780,-490.0,0.0001726,2]
[365197090,1749528644790,-490.0,0.0001726,2]
[365197092,1749528644800,-490.0,0.0001726,2]
[365197094,1749528644810,-490.0,0.0001726,2]
[365197096,1749528644820,-490.0,0.0001726,2]
[365197098,1749528644830,-430.87,0.0001726,2]
[365197100,1749528644839,-490.0,0.0001726,2]
[365197102,1749528644849,-586.76,0.0001726,2]
[365197104,1749528644859,-490.0,0.0001726,2]
[365197106,1749528644870,-1928.5,0.0001726,2]
[365197108,1749528644881,-490.0,0.0001726,2]
[365197110,1749528644890,-490.0,0.0001726,2]
[365197112,1749528644900,-490.0,0.0001726,2]
[365197114,1749528644910,-490.0,0.0001726,2]
[365197116,1749528644920,-490.0,0.0001726,2]
[365197118,1749528644930,-500.42,0.0001726,2]
[365197120,1749528644939,-602.11,0.0001726,2]
[365197122,1749528644949,-490.0,0.0001726,2]
[365197124,1749528644963,-225.05721308,0.0001726,2]
[365197126,1749528644976,-490.0,0.0001726,2]
[365197128,1749528644986,-552.13357052,0.0001726,2]
[365197130,1749528644995,-534.62,0.0001726,2]
[365197132,1749528645005,-490.0,0.0001726,2]
[365197134,1749528645015,-490.0,0.0001726,2]
[365197136,1749528645024,-490.0,0.0001726,2]
[365197138,1749528645034,-490.0,0.0001726,2]
[365197140,1749528645044,-490.0,0.0001726,2]
[365197142,1749528645053,-490.0,0.0001726,2]
[365197144,1749528645063,-490.0,0.0001726,2]
[365197146,1749528645073,-490.0,0.0001726,2]
[365197148,1749528645083,-490.0,0.0001726,2]
[365197150,1749528645093,-490.0,0.0001726,2]
[365197151,1749528645103,-20654.85,0.0001726,2]
[365197153,1749528645112,-490.0,0.0001726,2]
[365197155,1749528645122,-490.0,0.0001726,2]
[365197157,1749528645132,-230.97904937,0.0001726,2]
[365197159,1749528645142,-490.0,0.0001726,2]
[365197161,1749528645152,-916.68,0.0001726,2]
[365197163,1749528645164,-490.0,0.0001726,2]
[365197165,1749528645174,-213.36696816,0.0001726,2]
[365197167,1749528645184,-490.0,0.0001726,2]
[365197169,1749528645194,-1238.04,0.0001726,2]
[365197171,1749528645203,-490.0,0.0001726,2]
[365197173,1749528645213,-1206.41,0.0001726,2]
[365197175,1749528645223,-490.0,0.0001726,2]
[365197177,1749528645233,-504.91,0.0001726,2]
[365197179,1749528645242,-490.0,0.0001726,2]
[365197181,1749528645252,-490.0,0.0001726,2]
[365197183,1749528645262,-490.0,0.0001726,2]
[365197185,1749528645271,-490.0,0.0001726,2]
[365197187,1749528645281,-490.0,0.0001726,2]
[365197189,1749528645291,-490.0,0.0001726,2]
[365197191,1749528645301,-627.69,0.0001726,2]
[365197193,1749528645310,-490.0,0.0001726,2]
[365197195,1749528645320,-490.0,0.0001726,2]
[365197197,1749528645329,-1000.0,0.00017261,2]
[365197199,1749528645339,-150.0,0.00017262,2]
[365197201,1749528645348,-150.0,0.00017265,2]
[365197203,1749528645358,-150.0,0.00017269,2]
[365197205,1749528645367,-150.0,0.0001727,2]
[365197207,1749528645376,-1000.0,0.00017274,2]
[365197208,1749528645385,-150.0,0.00017279,2]
[365197210,1749528645395,-150.0,0.00017281,2]
[365197212,1749528645405,-1000.0,0.00017301,2]
[365197214,1749528645414,-329.0,0.00017307,4]
[365197216,1749528645423,-150.0,0.0001731,2]
[365197218,1749528645433,-168.55713208,0.00017315,2]
[365197220,1749528645442,-150.0,0.00017319,2]
[365197222,1749528645452,-150.0,0.0001732,2]
[365197224,1749528645461,-173.48609286,0.00017323,2]
[365197226,1749528645470,-150.0,0.00017325,2]
[365197228,1749528645480,-1000.0,0.00017337,2]
[365197230,1749528645490,-150.0,0.00017338,2]
[365197232,1749528645499,-150.0,0.00017352,2]
[365197234,1749528645509,-259.56702938,0.00017356,2]
[365197236,1749528645518,-150.0,0.00017362,2]
[365197238,1749528645527,-150.0,0.00017371,2]
[365197240,1749528645536,-150.0,0.00017372,2]
[365197241,1749528645545,-500.0,0.00017373,2]
[365197243,1749528645555,-500.0,0.00017373,2]
[365197245,1749528645564,-517.62605896,0.00017373,2]
[365197246,1749528645573,-150.0,0.00017376,2]
[365197248,1749528645582,-150.0,0.00017376,2]
[365197250,1749528645592,-150.0,0.00017382,2]
[365197252,1749528645601,-6787.14749726,0.00017385,2]
[365197254,1749528645611,-150.0,0.00017394,2]
[365197256,1749528645620,-300.0,0.00017399,2]
[365197258,1749528645629,-500.0,0.00017399,2]
[365197260,1749528645639,-721.19,0.00017399,2]
[365197262,1749528645648,-500.0,0.00017399,2]
[365197264,1749528645658,-261887.57131018,0.000174,2]
[365197265,1749528645668,-150.0,0.00017406,2]
[365197267,1749528645677,-490.0,0.00017424,2]
[365197269,1749528645688,-490.0,0.00017424,2]
[365197271,1749528645698,-490.0,0.00017424,2]
[365197273,1749528645708,-490.0,0.00017424,2]
[365197275,1749528645718,-490.0,0.00017424,2]
[365197277,1749528645727,-490.33,0.00017424,2]
[365197279,1749528645737,-490.0,0.00017424,2]
[365197281,1749528645746,-490.0,0.00017424,2]
[365197283,1749528645755,-613.81736375,0.00017424,2]
[365197285,1749528645766,-490.0,0.00017424,2]
[365197287,1749528645775,-490.0,0.00017424,2]
[365197288,1749528645784,-490.0,0.00017424,2]
[365197290,1749528645793,-490.0,0.00017424,2]
[365197292,1749528645802,-490.0,0.00017424,2]
[365197294,1749528645812,-656.33,0.00017424,2]
[365197296,1749528645822,-814.69,0.00017424,2]
[365197298,1749528645831,-490.0,0.00017424,2]
[365197299,1749528645840,-713.72,0.00017424,2]
[365197300,1749528645849,-896.72,0.00017424,2]
[365197301,1749528645859,-490.0,0.00017424,2]
[365197302,1749528645868,-490.0,0.00017424,2]
[365197303,1749528645876,-510.54,0.00017424,2]
[365197304,1749528645885,-490.0,0.00017424,2]
[365197305,1749528645894,-490.0,0.00017424,2]
[365197306,1749528645904,-490.0,0.00017424,2]
[365197307,1749528645912,-490.0,0.00017424,2]
[365197308,1749528645921,-316.54476334,0.00017424,2]
[365197309,1749528645930,-490.0,0.00017424,2]
[365197310,1749528645940,-490.0,0.00017424,2]
[365197311,1749528645949,-490.0,0.00017424,2]
[365197313,1749528645958,-627.40747987,0.00017424,2]
[365197315,1749528645968,-490.0,0.00017424,2]
[365197317,1749528645977,-586.76,0.00017424,2]
[365197319,1749528645987,-490.0,0.00017424,2]
[365197321,1749528645997,-1928.5,0.00017424,2]
[365197323,1749528646007,-490.0,0.00017424,2]
[365197325,1749528646016,-490.0,0.00017424,2]
[365197327,1749528646026,-558.29599765,0.00017424,2]
[365197329,1749528646035,-490.0,0.00017424,2]
[365197331,1749528646045,-490.0,0.00017424,2]
[365197333,1749528646054,-500.42,0.00017424,2]
[365197335,1749528646064,-602.11,0.00017424,2]
[365197338,1749528646073,-490.0,0.00017424,2]
[365197341,1749528646083,-490.0,0.00017424,2]
[365197343,1749528646093,-534.62,0.00017424,2]
[365197345,1749528646103,-490.0,0.00017424,2]
[365197347,1749528646113,-490.0,0.00017424,2]
[365197349,1749528646123,-490.0,0.00017424,2]
[365197351,1749528646132,-490.0,0.00017424,2]
[365197353,1749528646142,-490.0,0.00017424,2]
[365197355,1749528646152,-456.02939426,0.00017424,2]
[365197357,1749528646162,-490.0,0.00017424,2]
[365197358,1749528646171,-490.0,0.00017424,2]
[365197360,1749528646181,-490.0,0.00017424,2]
[365197363,1749528646192,-490.0,0.00017424,2]
[365197365,1749528646202,-20654.85,0.00017424,2]
[365197367,1749528646212,-490.0,0.00017424,2]
[365197369,1749528646222,-490.0,0.00017424,2]
[365197371,1749528646232,-490.0,0.00017424,2]
[365197373,1749528646241,-916.68,0.00017424,2]
[365197375,1749528646251,-490.0,0.00017424,2]
[365197377,1749528646261,-490.0,0.00017424,2]
[365197379,1749528646270,-1238.04,0.00017424,2]
[365197381,1749528646279,-490.0,0.00017424,2]
[365197382,1749528646289,-1206.41,0.00017424,2]
[365197384,1749528646299,-490.0,0.00017424,2]
[365197386,1749528646309,-504.91,0.00017424,2]
[365197388,1749528646318,-490.0,0.00017424,2]
[365197391,1749528646328,-490.0,0.00017424,2]
[365197397,1749528646382,-433.13256929,0.00017424,2]
[365197400,1749528646392,-490.0,0.00017424,2]
[365197401,1749528646401,-490.0,0.00017424,2]
[365197403,1749528646410,-490.0,0.00017424,2]
[365197405,1749528646420,-627.69,0.00017424,2]
[365197407,1749528646429,-490.0,0.00017424,2]
[365197409,1749528646438,-490.0,0.00017424,2]
[365197411,1749528646447,-121.31241912,0.000175,2]
[365197436,1749528646666,-208.68758088,0.000175,2]
[365197438,1749528646676,-384.0,0.000175,2]
[365197440,1749528646687,-600.0,0.00017555,2]
[365197442,1749528646696,-500.0,0.00017568,2]
[365197444,1749528646705,-300.0,0.00017588,2]
[365197446,1749528646714,-500.0,0.00017588,2]
[365197448,1749528646723,-490.0,0.00017589,2]
[365197450,1749528646733,-490.0,0.00017589,2]
[365197452,1749528646743,-490.0,0.00017589,2]
[365197454,1749528646753,-466.00981639,0.00017589,2]
[365197456,1749528646763,-490.0,0.00017589,2]
[365197458,1749528646772,-490.33,0.00017589,2]
[365197459,1749528646782,-181.63529144,0.00017589,2]
[365197461,1749528646791,-159.17,0.00017589,2]
[365197463,1749528646801,-490.0,0.00017589,2]
[365197465,1749528646810,-343.42789902,0.00017589,2]
[365197467,1749528646819,-490.0,0.00017589,2]
[365197469,1749528646828,-490.0,0.00017589,2]
[365197471,1749528646837,-490.0,0.00017589,2]
[365197473,1749528646847,-656.33,0.00017589,2]
[365197475,1749528646857,-814.69,0.00017589,2]
[365197477,1749528646866,-713.72,0.00017589,2]
[365197479,1749528646875,-896.72,0.00017589,2]
[365197481,1749528646884,-490.0,0.00017589,2]
[365197483,1749528646894,-490.0,0.00017589,2]
[365197485,1749528646903,-510.54,0.00017589,2]
[365197487,1749528646913,-490.0,0.00017589,2]
[365197489,1749528646922,-490.0,0.00017589,2]
[365197491,1749528646931,-490.0,0.00017589,2]
[365197493,1749528646940,-490.0,0.00017589,2]
[365197495,1749528646950,-490.0,0.00017589,2]
[365197497,1749528646959,-390.66935667,0.00017589,2]
[365197499,1749528646968,-490.0,0.00017589,2]
[365197501,1749528646978,-490.0,0.00017589,2]
[365197503,1749528646987,-586.76,0.00017589,2]
[365197505,1749528646997,-490.0,0.00017589,2]
[365197507,1749528647007,-1928.5,0.00017589,2]
[365197509,1749528647017,-490.0,0.00017589,2]
[365197511,1749528647026,-490.0,0.00017589,2]
[365197513,1749528647035,-490.0,0.00017589,2]
[365197515,1749528647044,-490.0,0.00017589,2]
[365197517,1749528647054,-500.42,0.00017589,2]
[365197519,1749528647063,-602.11,0.00017589,2]
[365197521,1749528647073,-490.0,0.00017589,2]
[365197523,1749528647083,-490.0,0.00017589,2]
[365197525,1749528647092,-534.62,0.00017589,2]
[365197527,1749528647102,-490.0,0.00017589,2]
[365197529,1749528647112,-490.0,0.00017589,2]
[365197531,1749528647122,-490.0,0.00017589,2]
[365197533,1749528647132,-489.32225138,0.00017589,2]
[365197535,1749528647141,-490.0,0.00017589,2]
[365197537,1749528647151,-490.0,0.00017589,2]
[365197539,1749528647161,-490.0,0.00017589,2]
[365197541,1749528647171,-490.0,0.00017589,2]
[365197543,1749528647183,-490.0,0.00017589,2]
[365197545,1749528647193,-7364.15392388,0.00017589,2]
[365197627,1749528650627,-1724.2500075,0.00017589,2]
[365197628,1749528650972,-490.0,0.00016438,2]
[365197629,1749528650982,-490.0,0.00016438,2]
[365197630,1749528650992,-490.0,0.00016602,2]
[365197631,1749528651002,-490.0,0.00016602,2]
[365197632,1749528651012,-228.78,0.00016767,2]
[365197633,1749528651024,-490.0,0.00016767,2]
[365197634,1749528651034,-185.79,0.00016931,2]
[365197635,1749528651044,-11566.44606862,0.00017589,2]
[365197636,1749528651054,-490.0,0.00017589,2]
[365197637,1749528651064,-490.0,0.00017589,2]
[365197638,1749528651074,-490.0,0.00017589,2]
[365197639,1749528651084,-916.68,0.00017589,2]
[365197640,1749528651094,-490.0,0.00017589,2]
[365197641,1749528651103,-490.0,0.00017589,2]
[365197642,1749528651113,-1238.04,0.00017589,2]
[365197643,1749528651123,-490.0,0.00017589,2]
[365197644,1749528651132,-1206.41,0.00017589,2]
[365197645,1749528651142,-490.0,0.00017589,2]
[365197646,1749528651152,-504.91,0.00017589,2]
[365197647,1749528651162,-490.0,0.00017589,2]
[365197648,1749528651172,-473.71914104,0.00017589,2]
[365197649,1749528651181,-490.0,0.00017589,2]
[365197650,1749528651191,-410.21296875,0.00017589,2]
[365197651,1749528651201,-490.0,0.00017589,2]
[365197652,1749528651210,-627.69,0.00017589,2]
[365197653,1749528651219,-490.18087629,0.00017589,2]
[365197654,1749528651229,-477.86813302,0.00017589,2]
[365197655,1749528651238,-250.0,0.00017676,2]
[365197656,1749528651248,-37477.68017614,0.000177,2]
[365197657,1749528651258,-500.0,0.00017704,2]
[365197658,1749528651268,-500.0,0.00017704,2]
[365197659,1749528651277,-269.0,0.00017711,2]
[365197660,1749528651286,-215.96,0.00017723,2]
[365197661,1749528651296,-300.0,0.00017738,2]
[365197662,1749528651306,-6787.14749726,0.00017745,2]
[365197663,1749528651315,-574.37,0.00017752,2]
[365197664,1749528651324,-721.19,0.00017752,2]
[365197665,1749528651334,-500.0,0.00017752,2]
[365197666,1749528651343,-300.0,0.00017752,2]
[365197667,1749528651353,-307.36126504,0.00017752,2]
[365197668,1749528651362,-173.48609281,0.00017753,2]
[365197669,1749528651372,-490.0,0.00017753,2]
[365197670,1749528651382,-490.0,0.00017753,2]
[365197671,1749528651391,-161.55889764,0.00017753,2]
[365197672,1749528651400,-490.0,0.00017753,2]
[365197673,1749528651410,-490.33,0.00017753,2]
[365197674,1749528651420,-490.0,0.00017753,2]
[365197675,1749528651429,-490.0,0.00017753,2]
[365197676,1749528651439,-490.0,0.00017753,2]
[365197677,1749528651448,-166.94625305,0.00017753,2]
[365197678,1749528651457,-713.72,0.00017753,2]
[365197679,1749528651467,-896.72,0.00017753,2]
[365197680,1749528651477,-490.0,0.00017753,2]
[365197681,1749528651486,-490.0,0.00017753,2]
[365197682,1749528651496,-510.54,0.00017753,2]
[365197683,1749528651505,-490.0,0.00017753,2]
[365197684,1749528651515,-490.0,0.00017753,2]
[365197685,1749528651525,-490.0,0.00017753,2]
[365197686,1749528651534,-490.0,0.00017753,2]
[365197687,1749528651543,-412.28908084,0.00017753,2]
[365197688,1749528651553,-490.0,0.00017753,2]
[365197689,1749528651563,-490.0,0.00017753,2]
[365197690,1749528651572,-586.76,0.00017753,2]
[365197691,1749528651582,-1928.5,0.00017753,2]
[365197692,1749528651591,-490.0,0.00017753,2]
[365197693,1749528651601,-490.0,0.00017753,2]
[365197694,1749528651610,-490.0,0.00017753,2]
[365197695,1749528651619,-490.0,0.00017753,2]
[365197696,1749528651629,-500.42,0.00017753,2]
[365197697,1749528651639,-602.11,0.00017753,2]
[365197698,1749528651648,-490.0,0.00017753,2]
[365197699,1749528651658,-490.0,0.00017753,2]
[365197700,1749528651667,-534.62,0.00017753,2]
[365197701,1749528651677,-490.0,0.00017753,2]
[365197702,1749528651688,-325.73655992,0.00017753,2]
[365197703,1749528651698,-490.0,0.00017753,2]
[365197704,1749528651707,-490.0,0.00017753,2]
[365197705,1749528651717,-490.0,0.00017753,2]
[365197706,1749528651727,-490.0,0.00017753,2]
[365197707,1749528651736,-490.0,0.00017753,2]
[365197708,1749528651746,-490.0,0.00017753,2]
[365197709,1749528651755,-20654.85,0.00017753,2]
[365197710,1749528651766,-490.0,0.00017753,2]
[365197711,1749528651777,-454.69885243,0.00017753,2]